Workbook

Sheet Pasiūlymas
A2: PIRKIMO SĄLYGŲ PRIEDAS "PASIŪLYMŲ FORMA"
A4: MEDICININIAI BLANKAI
A6: Kam: | B6: VšĮ LSMU Kauno ligoninė
A8: Data: | B8: 2022-05-10
A9: Nr.: | B9: 17
A10: Vieta: | B10: Ukmergė
A12: Tiekėjo pavadinimas / Ūkio subjektų grupės nariai: | C12: UAB "Valdo leidykla'
A13: Tiekėjo kodas (-ai): | C13: 182913998
A14: Tiekėjo adresas (-ai): | C14: P. Cvirkos g. 4-2, LT-20131 Ukmergė
A15: Tiekėjo PVM mokėtojo kodas(-ai): | C15: LT829139917
A16: Tiekėjo / Ūkio subjektų grupės atsakingo partnerio sąskaitos numeris, banko pavadinimas ir banko kodas (-ai): | C16: LT117182400012467280, AB Šiaulių bankas, b. k. 71824
A17: Asmens atsakingo už pasiūlymą vardas, pavardė: | C17: Kristina Tvarijonienė
A18: Asmens atsakingo už pasiūlymą telefono numeris, el. pašto adresas: | C18: Mob. 8 686 23454, el. p. kristina@vleidykla.lt
A19: Tiekėjo / Ūkio subjektų grupės, laimėjimo atveju, pasirašančio sutartį asmens vardas, pavardė, pareigos: | C19: Valdas Mikalajūnas, direktorius
A20: Tiekėjo / Ūkio subjektų grupės, laimėjimo atveju, už sutarties vykdymą atsakingo asmens vardas, pavardė, telefono numeris, elektroninio pašto adresas: | C20: Valdas Mikalajūnas, direktorius, mob. 8 678 38363, el. p. valdas@vleidykla.lt
A21: (1) Tiekėjo / Ūkio subjektų grupės narių, (2) ūkio subjektų, kurių pajėgumais remiamasi, ir (3) jei pašalinimo pagrindai taikomi visiems subtiekėjams - subtiekėjų, kolegialaus priežiūros organo (Stebėtojų tarybos) ir (ar) kolegialaus valdymo organo (Valdybos) narių sąrašas (jei sudaryta) ir (ar) asmuo, kuriam suteikti VPĮ 46 str. 2 d. 2 p. numatyti įgaliojimai | G21: =IF((SUMPRODUCT(--(C21=""))>0), "Privaloma užpildyti, kai taikomi pašalinimo pagrindai", "") -> Privaloma užpildyti, kai taikomi pašalinimo pagrindai
A23: Tiekėjo patvirtinimai:
A24: 1. Šiuo pasiūlymu pažymime, kad sutinkame su visomi pirkimo sąlygomis, nustatytomis:
A25: 1.1. viešojo pirkimo dokumentuose
A26: 1.2. kituose pirkimo dokumentuose (jų paaiškinimuose, papildymuose).
A27: 2. Patvirtiname, kad informacija ir duomenys, pateikti pasiūlyme, yra teisingi ir apima viską, ko reikia tinkamam sutarties įvykdymui
A28: 3. Patvirtiname, kad jei pasiūlyme nenurodyti kolegialaus priežiūros/valdymo organų nariai, šie organai juridiniuose asmenyse nėra sudaryti (taikoma, kai pirkimo dokumentuose nustatyti pašalinimo pagrindai).
A29: 4. Pasiūlymas galioja iki termino, nustatyto pirkimo dokumentuose.
A30: 5. Tais atvejais, kai pagal galiojančius teisės aktus tiekėjui nereikia mokėti PVM, jis nurodo priežastis, dėl kurių PVM nemoka:
A31: 6. Tiekėjas kainas pateikia, nurodydamas ne daugiau skaičių po kablelio, nei leidžiama pirkimo dokumentuose.
A32: Tiekėjo pasiūlymas:
A33: Nr. | B33: Pavadinimas | C33: Maksimalus kiekis | D33: Mato vienetas | E33: Mato vnt. įkainis be PVM, Eur | F33: Suma be PVM, Eur
A34: 1.1. | B34: 1 poz. 001/a Pacientų registravimo priėmimo-skubios pagalbos skyriuje žurnalas | C34: 400 | D34: vnt. | E34: 0.6 | F34: =IF(ISBLANK(E34),"", PRODUCT(C34,E34)) -> 240
A35: 1.1.1. | B35: Laikraštinis
A36: 1.1.2. | B36: A4, 96
A37: 1.2. | B37: 2 poz. 003/a Gydymo stacionare ligos istorija (viršelis) | C37: 22000 | D37: vnt. | E37: 0.01 | F37: =IF(ISBLANK(E37),"", PRODUCT(C37,E37)) -> 220
A38: 1.2.1. | B38: Laikraštinis
A39: 1.2.2. | B39: A3, 2
A40: 1.3. | B40: 3 poz. 003/a Gydymo stacionare ligos istorija (įdėtinis lapas) | C40: 222000 | D40: vnt. | E40: 0.008 | F40: =IF(ISBLANK(E40),"", PRODUCT(C40,E40)) -> 1776
A41: 1.3.1. | B41: Laikraštinis
A42: 1.3.2. | B42: A3, 2
A43: 1.4. | B43: 4 poz. 003-1/a Nėštumo nutraukimo aprašas | C43: 3000 | D43: vnt. | E43: 0.013 | F43: =IF(ISBLANK(E43),"", PRODUCT(C43,E43)) -> 39
A44: 1.4.1. | B44: Laikraštinis
A45: 1.4.2. | B45: A3, 2
A46: 1.5. | B46: 5 poz. 003-2/a Dienos stacionaro ligonio kortelė | C46: 10000 | D46: vnt. | E46: 0.007 | F46: =IF(ISBLANK(E46),"", PRODUCT(C46,E46)) -> 70
A47: 1.5.1. | B47: Laikraštinis
A48: 1.5.2. | B48: A4, 2
A49: 1.6. | B49: 6 poz. 003-3/a Chirurginės operacijos protokolas | C49: 30000 | D49: vnt. | E49: 0.005 | F49: =IF(ISBLANK(E49),"", PRODUCT(C49,E49)) -> 150
A50: 1.6.1. | B50: Laikraštinis
A51: 1.6.2. | B51: A4, 2
A52: 1.7. | B52: 7 poz. 003-4/a Gydytojo paskyrimai | C52: 243000 | D52: vnt. | E52: 0.0045 | F52: =IF(ISBLANK(E52),"", PRODUCT(C52,E52)) -> 1093.5
A53: 1.7.1. | B53: Laikraštinis
A54: 1.7.2. | B54: A4, 2
A55: 1.8. | B55: 8 poz. 004/a Temperatūros kortelė | C55: 200000 | D55: vnt. | E55: 0.0045 | F55: =IF(ISBLANK(E55),"", PRODUCT(C55,E55)) -> 900
A56: 1.8.1. | B56: Laikraštinis
A57: 1.8.2. | B57: A4, 2
A58: 1.9. | B58: 9 poz. 007/a Stacionaro pacientų ir lovų apskaitos lapelis | C58: 13000 | D58: vnt. | E58: 0.005 | F58: =IF(ISBLANK(E58),"", PRODUCT(C58,E58)) -> 65
A59: 1.9.1. | B59: Laikraštinis
A60: 1.9.2. | B60: A4, 2
A61: 1.10. | B61: 10 poz. 008/a Chirurginių operacijų, atliktų stacionare, registravimo žurnalas | C61: 370 | D61: vnt. | E61: 0.6 | F61: =IF(ISBLANK(E61),"", PRODUCT(C61,E61)) -> 222
A62: 1.10.1. | B62: Laikraštinis
A63: 1.10.2. | B63: A4, 96
A64: 1.11. | B64: 11 poz. 009/a Transfuzinių terpių perpylimo registravimo žurnalas | C64: 150 | D64: vnt. | E64: 0.4 | F64: =IF(ISBLANK(E64),"", PRODUCT(C64,E64)) -> 60
A65: 1.11.1. | B65: Laikraštinis
A66: 1.11.2. | B66: A4, 48
A67: 1.12. | B67: 12 poz. 010/a Gimdyvių ir naujagimių registravimo žurnalas | C67: 120 | D67: vnt. | E67: 0.6 | F67: =IF(ISBLANK(E67),"", PRODUCT(C67,E67)) -> 72
A68: 1.12.1. | B68: Laikraštinis
A69: 1.12.2. | B69: A4, 96
A70: 1.13. | B70: 13 poz. 010-1-1/a Naujagimio kortelė | C70: 10000 | D70: vnt. | E70: 0.007 | F70: =IF(ISBLANK(E70),"", PRODUCT(C70,E70)) -> 70
A71: 1.13.1. | B71: Laikraštinis
A72: 1.13.2. | B72: A4, 2
A73: 1.14. | B73: 14 poz. 011/a Reanimacijos ir intensyviosio terapijos skyriaus (palatos) ligonio sveikatos būklės rodiklių kortelė | C73: 4000 | D73: vnt. | E73: 0.013 | F73: =IF(ISBLANK(E73),"", PRODUCT(C73,E73)) -> 52
A74: 1.14.1. | B74: Ofsetinis
A75: 1.14.2. | B75: A4, 2
A76: 1.15. | B76: 15 poz. 014-1-1/a Siuntimas atlikti patologijos tyrimą | C76: 11000 | D76: vnt. | E76: 0.01 | F76: =IF(ISBLANK(E76),"", PRODUCT(C76,E76)) -> 110
A77: 1.15.1. | B77: Ofsetinis
A78: 1.15.2. | B78: A4, 1
A79: 1.16. | B79: 16 poz. 015/a Mirusių asmenų registravimo žurnalas | C79: 70 | D79: vnt. | E79: 0.5 | F79: =IF(ISBLANK(E79),"", PRODUCT(C79,E79)) -> 35
A80: 1.16.1. | B80: Ofsetinis
A81: 1.16.2. | B81: A4, 48
A82: 1.17. | B82: 17 poz. 017-1/a Asmens mirties sveikatos priežiūros įstaigoje aktas | C82: 11000 | D82: vnt. | E82: 0.01 | F82: =IF(ISBLANK(E82),"", PRODUCT(C82,E82)) -> 110
A83: 1.17.1. | B83: Ofsetinis
A84: 1.17.2. | B84: A4, 2
A85: 1.18. | B85: 18 poz. 025/a Ambulatorinė asmens sveikatos istorija (viršelis) | C85: 251000 | D85: vnt. | E85: 0.01 | F85: =IF(ISBLANK(E85),"", PRODUCT(C85,E85)) -> 2510
A86: 1.18.1. | B86: Ofsetinis
A87: 1.18.2. | B87: A4, 2
A88: 1.19. | B88: 19 poz. 025/a Ambulatorinė asmens sveikatos istorija (vidinis lapas) | C88: 250000 | D88: vnt. | E88: 0.01 | F88: =IF(ISBLANK(E88),"", PRODUCT(C88,E88)) -> 2500
A89: 1.19.1. | B89: Ofsetinis
A90: 1.19.2. | B90: A4, 2
A91: 1.20. | B91: 20 poz. 025/a Ambulatorinė asmens sveikatos istorija (įdėtinis lapas) | C91: 300000 | D91: vnt. | E91: 0.002 | F91: =IF(ISBLANK(E91),"", PRODUCT(C91,E91)) -> 600
A92: 1.20.1. | B92: Laikraštinis
A93: 1.20.2. | B93: A5, 2
A94: 1.21. | B94: 21 poz. 025-113/a Nėščiosios kortelė (Viršelis/informacija nėščiajai/3 priedas) | C94: 5000 | D94: vnt. | E94: 0.013 | F94: =IF(ISBLANK(E94),"", PRODUCT(C94,E94)) -> 65
A95: 1.21.1. | B95: Laikraštinis
A96: 1.21.2. | B96: A3, 2
A97: 1.22. | B97: 22 poz. 025-113/a Nėščiosios kortelė (1 priedas/2 priedas/asmens duomenys/didelės rizikos nėštumo veiksniai) | C97: 5000 | D97: vnt. | E97: 0.013 | F97: =IF(ISBLANK(E97),"", PRODUCT(C97,E97)) -> 65
A98: 1.22.1. | B98: Laikraštinis
A99: 1.22.2. | B99: A3, 2
A100: 1.23. | B100: 23 poz. 025-113/a Nėščiosios kortelė (Tyrimai/specialistų konsultacijos/anamnezė/apsilankymai) | C100: 5000 | D100: vnt. | E100: 0.013 | F100: =IF(ISBLANK(E100),"", PRODUCT(C100,E100)) -> 65
A101: 1.23.1. | B101: Laikraštinis
A102: 1.23.2. | B102: A3, 2
A103: 1.24. | B103: 24 poz. 025-113/a 1 priedas Nėščiosios kortelė (1 priedas) | C103: 4000 | D103: vnt. | E103: 0.007 | F103: =IF(ISBLANK(E103),"", PRODUCT(C103,E103)) -> 28
A104: 1.24.1. | B104: Laikraštinis
A105: 1.24.2. | B105: A4, 1
A106: 1.25. | B106: 25 poz. 025-113/a 2 priedas Nėščiosios kortelė (2 priedas) | C106: 4000 | D106: vnt. | E106: 0.007 | F106: =IF(ISBLANK(E106),"", PRODUCT(C106,E106)) -> 28
A107: 1.25.1. | B107: Laikraštinis
A108: 1.25.2. | B108: A4, 1
A109: 1.26. | B109: 26 poz. 025-113/a 3 priedas Nėščiosios kortelė (3 priedas) | C109: 4000 | D109: vnt. | E109: 0.007 | F109: =IF(ISBLANK(E109),"", PRODUCT(C109,E109)) -> 28
A110: 1.26.1. | B110: Laikraštinis
A111: 1.26.2. | B111: A4, 1
A112: 1.27. | B112: 27 poz. 025/a-4/a Priėmimo pas gydytoją talonas | C112: 5000 | D112: vnt. | E112: 0.001 | F112: =IF(ISBLANK(E112),"", PRODUCT(C112,E112)) -> 5
A113: 1.27.1. | B113: Laikraštinis
A114: 1.27.2. | B114: A7, 2
A115: 1.28. | B115: 28 poz. Priėmimo pas gydytoją talonas (Konsultacijų poliklinika Hipodromo g.) | C115: 30000 | D115: vnt. | E115: 0.006 | F115: =IF(ISBLANK(E115),"", PRODUCT(C115,E115)) -> 180
A116: 1.28.1. | B116: Ofsetinis, 80 g
A117: 1.28.2. | B117: 10x7 cm
A118: 1.28.3. | B118: Spalvotas, 4+4
A119: 1.29. | B119: 29 poz. Priėmimo pas gydytoją talonas (Garliavos poliklinika) | C119: 15000 | D119: vnt. | E119: 0.006 | F119: =IF(ISBLANK(E119),"", PRODUCT(C119,E119)) -> 90
A120: 1.29.1. | B120: Ofsetinis, 80 g
A121: 1.29.2. | B121: 10x7 cm
A122: 1.29.3. | B122: Spalvotas, 4+4
A123: 1.30. | B123: 30 poz. Priėmimo pas gydytoją talonas (Vaikų konsultacinė) | C123: 10000 | D123: vnt. | E123: 0.006 | F123: =IF(ISBLANK(E123),"", PRODUCT(C123,E123)) -> 60
A124: 1.30.1. | B124: Ofsetinis, 80 g
A125: 1.30.2. | B125: 10x7 cm
A126: 1.30.3. | B126: Spalvotas, 4+4
A127: 1.31. | B127: 31 poz. Priėmimo pas gydytoją talonas (Odos poliklinika) | C127: 20000 | D127: vnt. | E127: 0.006 | F127: =IF(ISBLANK(E127),"", PRODUCT(C127,E127)) -> 120
A128: 1.31.1. | B128: Ofsetinis, 80 g
A129: 1.31.2. | B129: 10x7 cm
A130: 1.31.3. | B130: Spalvotas, 4+4
A131: 1.32. | B131: 32 poz. Priėmimo pas gydytoją talonas (Konsultacinė poliklinika Josvainių g.) | C131: 20000 | D131: vnt. | E131: 0.006 | F131: =IF(ISBLANK(E131),"", PRODUCT(C131,E131)) -> 120
A132: 1.32.1. | B132: Ofsetinis, 80 g
A133: 1.32.2. | B133: 10x7 cm
A134: 1.32.3. | B134: Spalvotas, 4+4
A135: 1.33. | B135: 33 poz. Priėmimo pas gydytoją talonas (Padalinys Laisvės al.) | C135: 50000 | D135: vnt. | E135: 0.006 | F135: =IF(ISBLANK(E135),"", PRODUCT(C135,E135)) -> 300
A136: 1.33.1. | B136: Ofsetinis, 80 g
A137: 1.33.2. | B137: 10x7 cm
A138: 1.33.3. | B138: Spalvotas, 4+4
A139: 1.34. | B139: 34 poz. 027/a Medicinos dokumentų išrašas/siuntimas | C139: 120000 | D139: kompl. | E139: 0.018 | F139: =IF(ISBLANK(E139),"", PRODUCT(C139,E139)) -> 2160
A140: 1.34.1. | B140: Save kopijuojantis
A141: 1.34.2. | B141: A5, 2
A142: 1.35. | B142: 35 poz. 027-1/a Vaiko sveikatos pažymėjimas | C142: 2000 | D142: vnt. | E142: 0.002 | F142: =IF(ISBLANK(E142),"", PRODUCT(C142,E142)) -> 4
A143: 1.35.1. | B143: Laikraštinis
A144: 1.35.2. | B144: A6, 2
A145: 1.36. | B145: 36 poz. 029/a Procedūrų apskaitos žurnalas | C145: 100 | D145: vnt. | E145: 0.4 | F145: =IF(ISBLANK(E145),"", PRODUCT(C145,E145)) -> 40
A146: 1.36.1. | B146: Laikraštinis
A147: 1.36.2. | B147: A4, 48
A148: 1.37. | B148: 37 poz. 030/a Dispanserinės apskaitos kortelė | C148: 2000 | D148: vnt. | E148: 0.04 | F148: =IF(ISBLANK(E148),"", PRODUCT(C148,E148)) -> 80
A149: 1.37.1. | B149: Kartonas
A150: 1.37.2. | B150: A5, 1
A151: 1.38. | B151: 38 poz. 035/a Gydytojų konsultacinės komisijos išvadų registravimo žurnalas | C151: 50 | D151: vnt. | E151: 0.7 | F151: =IF(ISBLANK(E151),"", PRODUCT(C151,E151)) -> 35
A152: 1.38.1. | B152: Laikraštinis
A153: 1.38.2. | B153: A4, 96
A154: 1.39. | B154: 39 poz. 036/a Nedarbingumo pažymėjimų registravimo žurnalas | C154: 50 | D154: vnt. | E154: 0.7 | F154: =IF(ISBLANK(E154),"", PRODUCT(C154,E154)) -> 35
A155: 1.39.1. | B155: Laikraštinis
A156: 1.39.2. | B156: A4, 96
A157: 1.40. | B157: 40 poz. 040/a Išankstinės registracijos pas gydytoją kortelė | C157: 20000 | D157: vnt. | E157: 0.004 | F157: =IF(ISBLANK(E157),"", PRODUCT(C157,E157)) -> 80
A158: 1.40.1. | B158: Laikraštinis
A159: 1.40.2. | B159: A5, 2
A160: 1.41. | B160: 41 poz. 042/a Kineziterapijos kortelė | C160: 125000 | D160: vnt. | E160: 0.004 | F160: =IF(ISBLANK(E160),"", PRODUCT(C160,E160)) -> 500
A161: 1.41.1. | B161: Laikraštinis
A162: 1.41.2. | B162: A4,2
A163: 1.42. | B163: 42 poz. 044/a Fizinės medicinos ir reabilitacijos procedūrų kortelė | C163: 100000 | D163: vnt. | E163: 0.002 | F163: =IF(ISBLANK(E163),"", PRODUCT(C163,E163)) -> 200
A164: 1.42.1. | B164: Laikraštinis
A165: 1.42.2. | B165: A5, 2
A166: 1.43. | B166: 43 poz. 045/a Kreipimosi dėl pasiutligės kortelė | C166: 6000 | D166: vnt. | E166: 0.007 | F166: =IF(ISBLANK(E166),"", PRODUCT(C166,E166)) -> 42
A167: 1.43.1. | B167: Laikraštinis
A168: 1.43.2. | B168: A4, 2
A169: 1.44. | B169: 44 poz. 046/a Medicininis pažymėjimas | C169: 2000 | D169: vnt. | E169: 0.004 | F169: =IF(ISBLANK(E169),"", PRODUCT(C169,E169)) -> 8
A170: 1.44.1. | B170: Laikraštinis
A171: 1.44.2. | B171: A5, 1
A172: 1.45. | B172: 45 poz. 048/a Asmens medicininė knygelė (Darbų sauga) | C172: 500 | D172: vnt. | E172: 0.15 | F172: =IF(ISBLANK(E172),"", PRODUCT(C172,E172)) -> 75
A173: 1.45.1. | B173: Laikraštinis
A174: 1.45.2. | B174: A6,24
A175: 1.46. | B175: 46 poz. 050/a Radiologinių tyrimų registravimo žurnalas | C175: 1000 | D175: vnt. | E175: 0.6 | F175: =IF(ISBLANK(E175),"", PRODUCT(C175,E175)) -> 600
A176: 1.46.1. | B176: Laikraštinis
A177: 1.46.2. | B177: A4, 96
A178: 1.47. | B178: 47 poz. 058-089-151/a Pranešimas apie nustatytą (įtariamą) susirgimą | C178: 5000 | D178: vnt. | E178: 0.004 | F178: =IF(ISBLANK(E178),"", PRODUCT(C178,E178)) -> 20
A179: 1.47.1. | B179: Laikraštinis
A180: 1.47.2. | B180: A5, 2
A181: 1.48. | B181: 48 poz. 060/a Infekcinių susirgimų registravimo žurnalas | C181: 100 | D181: vnt. | E181: 0.7 | F181: =IF(ISBLANK(E181),"", PRODUCT(C181,E181)) -> 70
A182: 1.48.1. | B182: Laikraštinis
A183: 1.48.2. | B183: A4, 96
A184: 1.49. | B184: 49 poz. 060-1/a Tuberkulioze sergančių asmenų registracijos žurnalas | C184: 20 | D184: vnt. | E184: 0.7 | F184: =IF(ISBLANK(E184),"", PRODUCT(C184,E184)) -> 14
A185: 1.49.1. | B185: Laikraštinis
A186: 1.49.2. | B186: A4, 96
A187: 1.50. | B187: 50 poz. 063/a Profilaktiniai skiepijimai | C187: 7000 | D187: vnt. | E187: 0.012 | F187: =IF(ISBLANK(E187),"", PRODUCT(C187,E187)) -> 84
A188: 1.50.1. | B188: Ofsetinis
A189: 1.50.2. | B189: A4, 2
A190: 1.51. | B190: 51 poz. 064/a Profilaktinių skiepijimų įskaitos žurnalas | C190: 120 | D190: vnt. | E190: 0.7 | F190: =IF(ISBLANK(E190),"", PRODUCT(C190,E190)) -> 84
A191: 1.51.1. | B191: Laikraštinis
A192: 1.51.2. | B192: A4, 96
A193: 1.52. | B193: 52 poz. 069/a Ambulatorinių operacijų registravimo žurnalas | C193: 40 | D193: vnt. | E193: 0.7 | F193: =IF(ISBLANK(E193),"", PRODUCT(C193,E193)) -> 28
A194: 1.52.1. | B194: Laikraštinis
A195: 1.52.2. | B195: A4, 96
A196: 1.53. | B196: 53 poz. 074/a Ambulatorinių ligonių registravimo žurnalas | C196: 400 | D196: vnt. | E196: 0.6 | F196: =IF(ISBLANK(E196),"", PRODUCT(C196,E196)) -> 240
A197: 1.53.1. | B197: Laikraštinis
A198: 1.53.2. | B198: A4, 96
A199: 1.54. | B199: 54 poz. 090/a Pranešimas apie pirmą kartą nustatytą piktybinio naviko diagnozę | C199: 2000 | D199: vnt. | E199: 0.004 | F199: =IF(ISBLANK(E199),"", PRODUCT(C199,E199)) -> 8
A200: 1.54.1. | B200: Laikraštinis
A201: 1.54.2. | B201: A5, 2
A202: 1.55. | B202: 55 poz. 094/a Medicininė pažyma dėl neatvykimo į darbą, Užimtumo tarnybą prie Lietuvos Respublikos socialinės apsaugos ir darbo ministerijos | C202: 4000 | D202: vnt. | E202: 0.007 | F202: =IF(ISBLANK(E202),"", PRODUCT(C202,E202)) -> 28
A203: 1.55.1. | B203: Laikraštinis
A204: 1.55.2. | B204: A4, 1
A205: 1.56. | B205: 56 poz. 094-1/a Medicininė pažyma dėl neatvykimo į ikiteisminio tyrimo įstaigą, prokuratūrą, teismą ar karo prievolę administruojančią krašto apsaugos sistemos instituciją | C205: 1000 | D205: vnt. | E205: 0.015 | F205: =IF(ISBLANK(E205),"", PRODUCT(C205,E205)) -> 15
A206: 1.56.1. | B206: Ofsetinis
... 226 more rows

Sheet Subtiekėjai ir priedai
A2: Ūkio subjektai (įskaitant kvazisubtiekėjus - fiziniai asmenys, kuriuos ketinama įdarbinti pirkimo laimėjimo atveju), kurių pajėgumais tiekėjas remiasi, kad atitiktų keliamus kvalifikacijos reikalavimus:
A5: Pavadinimas* | C5: Kodas, adresas | F5: Perduodami įsipareigojimai | I5: Perduodamų įsipareigojimų dalis nuo visos pirkimo sutarties (Eur arba %) | K5: Kval. Reikalavimo Nr.
A17: Subtiekėjams / subteikėjams / subrangovams numatomos perduoti veiklos (privaloma nurodyti) ir šių ūkio subjektų pavadinimai (jei žinomi):
A19: Pavadinimas | C19: Kodas, adresas | F19: Perduodama veikla* | I19: Perduodamos veiklos dalis nuo visos pirkimo sutarties (Eur arba %)
A33: Kartu su pasiūlymu pateikiami šie dokumentai:
A35: Nr. | B35: Dokumento pavadinimas | H35: Dokumentas yra konfidencialus? Taip/Ne
A36: 1 | B36: Jungtinės veiklos kopija (jei taikoma)
A37: 2 | B37: Europos bendrasis viešųjų pirkimų dokumentas | H37: Taip
A38: 3 | B38: Subtiekimo sutartis, ketinimų protokolas, preliminarios sutartys ar kiti dokumentai, patvirtinantys, kad laimėjus pirkimą tiekėjui bus prieinami kitų ūkio subjektų ištekliai (jei pasitelkiami kvalifikacijos atitikimui)
A48: Pasiūlyme nurodyta Prekės kaina, išskyrus jos sudedamąsias dalis, subtiekėjai, taip pat kita informacija, kuri teisės aktų nustatyta tvarka turi būti skelbiama arba kitokiu būdu viešai prieinama visuomenei, nėra laikoma konfidencialia informacija. Konfidencialią informaciją sudaro, visų pirma, komercinė (gamybinė) paslaptis ir konfidencialieji pasiūlymų aspektai. Informacija, kurią viešai skelbti įpareigoja Lietuvos Respublikos įstatymai, negali būti tiekėjo nurodoma kaip konfidenciali, todėl, tiekėjui nurodžius tokią informaciją kaip konfidencialią, perkančioji organizacija turi teisę ją skelbti. Jei tiekėjas nenurodo konfidencialios informacijos, laikoma, kad konfidencialios informacijos tiekėjo pasiūlyme nėra. Vadovaujantis Informacijos viešinimo Centrinėje viešųjų pirkimų informacinėje sistemoje tvarkos aprašu, patvirtintu Viešųjų pirkimų tarnybos direktoriaus 2017 m. birželio 19 d. įsakymu Nr. 1S-91 „Dėl Informacijos viešinimo Centrinėje viešųjų pirkimų informacinėje sistemoje tvarkos aprašo patvirtinimo“, perkančioji organizacija laimėjusio dalyvio pasiūlymą, išskyrus informaciją, kurią tiekėjas nurodė kaip konfidencialią, paskelbs CVP IS.
A51: Tiekėjo arba jo įgalioto asmens pareigų pavadinimas: | E51: Direktorius
A53: Pasirašančio asmens vardas ir pavardė: | E53: Valdas Mikalajūnas
A100: 6299 2022-04-19 14:59:20
